[Event "Titled Tuesday Blitz April 12 Late 2022"]
[White "Demchenko, Anton"]
[Black "Hnydiuk, Aleksander"]
[WhiteFideId "4160258"]
[BlackFideId "1109057"]
[WhiteElo "2539"]
[BlackElo "2374"]
[Result "0-1"]
[Round "04"]
[TimeControl "180+1"]
[Date "2022.04.13"]
[WhiteClock "0:00:07"]
[BlackClock "0:00:05"]

1. e4 {[%clk 0:03:00]}  e5 {[%clk 0:03:00]} 2. Nf3 {[%clk 0:03:01]}  Nf6 {[%clk 0:03:00]} 3. Nxe5 {[%clk 0:03:00]}  d6 {[%clk 0:03:00]} 4. Nf3 {[%clk 0:03:01]}  Nxe4 {[%clk 0:03:00]} 5. Nc3 {[%clk 0:03:01]}  Nxc3 {[%clk 0:03:00]} 6. dxc3 {[%clk 0:03:02]}  Be7 {[%clk 0:03:00]} 7. Bf4 {[%clk 0:03:03]}  O-O {[%clk 0:03:00]} 8. Qd2 {[%clk 0:03:03]}  d5 {[%clk 0:02:27]} 9. O-O-O {[%clk 0:03:04]}  c6 {[%clk 0:02:27]} 10. c4 {[%clk 0:03:02]}  Be6 {[%clk 0:02:16]} 11. Nd4 {[%clk 0:03:01]}  Nd7 {[%clk 0:02:09]} 12. cxd5 {[%clk 0:02:52]}  Bxd5 {[%clk 0:02:08]} 13. Nf5 {[%clk 0:02:53]}  Bf6 {[%clk 0:01:57]} 14. c4 {[%clk 0:02:23]}  Be6 {[%clk 0:01:47]} 15. Nd4 {[%clk 0:02:23]}  Bg4 {[%clk 0:01:23]} 16. f3 {[%clk 0:02:20]}  Bh5 {[%clk 0:01:23]} 17. g4 {[%clk 0:02:04]}  Bg6 {[%clk 0:01:23]} 18. g5 {[%clk 0:01:40]}  Be5 {[%clk 0:01:12]} 19. h4 {[%clk 0:01:38]}  Bh5 {[%clk 0:00:37]} 20. Bh3 {[%clk 0:01:28]}  Qc7 {[%clk 0:00:30]} 21. Be3 {[%clk 0:01:19]}  Rad8 {[%clk 0:00:25]} 22. Qf2 {[%clk 0:01:06]}  Nb6 {[%clk 0:00:22]} 23. b3 {[%clk 0:01:04]}  Qe7 {[%clk 0:00:21]} 24. Nf5 {[%clk 0:00:58]}  Qa3+ {[%clk 0:00:19]} 25. Kb1 {[%clk 0:00:59]}  Bg6 {[%clk 0:00:11]} 26. Bc5 {[%clk 0:00:59]}  Qa5 {[%clk 0:00:09]} 27. h5 {[%clk 0:00:45]}  Qc3 {[%clk 0:00:07]} 28. Bd4 {[%clk 0:00:16]}  Bxf5+ {[%clk 0:00:07]} 29. Bxf5 {[%clk 0:00:15]}  Bxd4 {[%clk 0:00:07]} 30. Rxd4 {[%clk 0:00:15]}  Qxd4 {[%clk 0:00:08]} 31. Qc2 {[%clk 0:00:14]}  Rfe8 {[%clk 0:00:08]} 32. Bxh7+ {[%clk 0:00:14]}  Kf8 {[%clk 0:00:09]} 33. Be4 {[%clk 0:00:13]}  Rxe4 {[%clk 0:00:08]} 34. fxe4 {[%clk 0:00:12]}  Qd3 {[%clk 0:00:08]} 35. h6 {[%clk 0:00:13]}  gxh6 {[%clk 0:00:08]} 36. gxh6 {[%clk 0:00:13]}  Qxc2+ {[%clk 0:00:08]} 37. Kxc2 {[%clk 0:00:12]}  Kg8 {[%clk 0:00:09]} 38. Rg1+ {[%clk 0:00:13]}  Kh8 {[%clk 0:00:09]} 39. Rg7 {[%clk 0:00:14]}  Rf8 {[%clk 0:00:09]} 40. e5 {[%clk 0:00:13]}  Nc8 {[%clk 0:00:09]} 41. e6 {[%clk 0:00:14]}  fxe6 {[%clk 0:00:08]} 42. Rxb7 {[%clk 0:00:15]}  Nd6 {[%clk 0:00:07]} 43. Rxa7 {[%clk 0:00:15]}  Rf7 {[%clk 0:00:07]} 44. Ra8+ {[%clk 0:00:14]}  Kh7 {[%clk 0:00:07]} 45. Rd8 {[%clk 0:00:15]}  Nf5 {[%clk 0:00:07]} 46. Kd3 {[%clk 0:00:15]}  Kxh6 {[%clk 0:00:06]} 47. Rc8 {[%clk 0:00:15]}  Ne7 {[%clk 0:00:06]} 48. Rc7 {[%clk 0:00:15]}  Kg6 {[%clk 0:00:06]} 49. a4 {[%clk 0:00:14]}  Kf6 {[%clk 0:00:06]} 50. a5 {[%clk 0:00:15]}  Rf8 {[%clk 0:00:07]} 51. b4 {[%clk 0:00:14]}  Rb8 {[%clk 0:00:06]} 52. Kc3 {[%clk 0:00:13]}  e5 {[%clk 0:00:05]} 53. a6 {[%clk 0:00:12]}  Ke6 {[%clk 0:00:05]} 54. a7 {[%clk 0:00:12]}  Ra8 {[%clk 0:00:05]} 55. Rb7 {[%clk 0:00:11]}  Nc8 {[%clk 0:00:03]} 56. c5 {[%clk 0:00:09]}  Nxa7 {[%clk 0:00:03]} 57. Kc4 {[%clk 0:00:08]}  Nb5 {[%clk 0:00:02]} 58. Rb6 {[%clk 0:00:08]}  Na3+ {[%clk 0:00:03]} 59. Kb3 {[%clk 0:00:08]}  Kd5 {[%clk 0:00:03]} 60. Rb7 {[%clk 0:00:07]}  Nb5 {[%clk 0:00:04]} 61. Rd7+ {[%clk 0:00:07]}  Ke6 {[%clk 0:00:04]} 62. Rh7 {[%clk 0:00:06]}  Ra3+ {[%clk 0:00:04]} 63. Kb2 {[%clk 0:00:06]}  Kd5 {[%clk 0:00:04]} 64. Rd7+ {[%clk 0:00:03]}  Kc4 {[%clk 0:00:05]} 65. Re7 {[%clk 0:00:04]}  Kxb4 {[%clk 0:00:04]} 66. Rxe5 {[%clk 0:00:05]}  Nd4 {[%clk 0:00:04]} 67. Rh5 {[%clk 0:00:04]}  Rb3+ {[%clk 0:00:04]} 68. Ka2 {[%clk 0:00:04]}  Rc3 {[%clk 0:00:05]} 69. Rh4 {[%clk 0:00:04]}  Kc4 {[%clk 0:00:05]} 70. Kb2 {[%clk 0:00:04]}  Rb3+ {[%clk 0:00:05]} 71. Ka2 {[%clk 0:00:05]}  Rb5 {[%clk 0:00:05]} 72. Rh5 {[%clk 0:00:04]}  Rxc5 {[%clk 0:00:06]} 73. Rh6 {[%clk 0:00:05]}  Ra5+ {[%clk 0:00:04]} 74. Kb2 {[%clk 0:00:06]}  Rb5+ {[%clk 0:00:05]} 75. Ka2 {[%clk 0:00:06]}  c5 {[%clk 0:00:05]} 76. Rh8 {[%clk 0:00:07]}  Ra5+ {[%clk 0:00:05]} 77. Kb2 {[%clk 0:00:07]}  Rb5+ {[%clk 0:00:06]} 78. Ka2 {[%clk 0:00:08]}  Kc3 {[%clk 0:00:06]} 79. Rh3+ {[%clk 0:00:08]}  Kc4 {[%clk 0:00:05]} 80. Rh2 {[%clk 0:00:09]}  Rb6 {[%clk 0:00:05]} 81. Rg2 {[%clk 0:00:09]}  Ra6+ {[%clk 0:00:05]} 82. Kb2 {[%clk 0:00:09]}  Kb4 {[%clk 0:00:05]} 83. Rg4 {[%clk 0:00:09]}  Rd6 {[%clk 0:00:05]} 84. Rh4 {[%clk 0:00:08]}  c4 {[%clk 0:00:05]} 85. Rh8 {[%clk 0:00:08]}  c3+ {[%clk 0:00:05]} 86. Kc1 {[%clk 0:00:09]}  Kc4 {[%clk 0:00:05]} 87. Rh4 {[%clk 0:00:06]}  Ra6 {[%clk 0:00:05]} 88. Kb1 {[%clk 0:00:07]}  Re6 {[%clk 0:00:05]} 89. Rh1 {[%clk 0:00:06]}  Re2 {[%clk 0:00:06]} 90. Rh8 {[%clk 0:00:04]}  Re1+ {[%clk 0:00:05]} 91. Ka2 {[%clk 0:00:05]}  c2 {[%clk 0:00:06]} 92. Rc8+ {[%clk 0:00:05]}  Kd3 {[%clk 0:00:06]} 93. Kb2 {[%clk 0:00:06]}  Rb1+ {[%clk 0:00:06]} 94. Ka2 {[%clk 0:00:06]}  c1=Q {[%clk 0:00:06]} 95. Rc3+ {[%clk 0:00:07]}  Ke4 {[%clk 0:00:04]} 96. Re3+ {[%clk 0:00:06]}  Qxe3 {[%clk 0:00:04]} 97. Kxb1 {[%clk 0:00:06]}  Qd2 {[%clk 0:00:04]} 98. Ka1 {[%clk 0:00:07]}  Kd3 {[%clk 0:00:05]} 0-1


[Site "https://www.chess.com"]

[Event "Titled Tuesday Blitz April 12 Late 2022"]
[White "Esipenko, Andrey"]
[Black "Kobalia, Mikhail"]
[WhiteFideId "24175439"]
[BlackFideId "4119150"]
[WhiteElo "2617"]
[BlackElo "2667"]
[Result "1-0"]
[Round "04"]
[TimeControl "180+1"]
[Date "2022.04.12"]
[WhiteClock "0:00:16"]
[BlackClock "0:00:02"]

1. d4 {[%clk 0:02:53]}  d5 {[%clk 0:02:59]} 2. c4 {[%clk 0:02:53]}  c6 {[%clk 0:02:59]} 3. Nf3 {[%clk 0:02:53]}  Nf6 {[%clk 0:03:00]} 4. Nc3 {[%clk 0:02:53]}  e6 {[%clk 0:03:00]} 5. e3 {[%clk 0:02:52]}  Nbd7 {[%clk 0:03:00]} 6. Be2 {[%clk 0:02:53]}  Bd6 {[%clk 0:03:00]} 7. O-O {[%clk 0:02:53]}  O-O {[%clk 0:03:01]} 8. b3 {[%clk 0:02:54]}  b6 {[%clk 0:03:01]} 9. Bb2 {[%clk 0:02:54]}  Bb7 {[%clk 0:03:01]} 10. Bd3 {[%clk 0:02:54]}  Qe7 {[%clk 0:03:00]} 11. Qe2 {[%clk 0:02:55]}  Rfe8 {[%clk 0:03:00]} 12. Rad1 {[%clk 0:02:54]}  Rac8 {[%clk 0:03:00]} 13. Rfe1 {[%clk 0:02:53]}  c5 {[%clk 0:02:59]} 14. cxd5 {[%clk 0:02:51]}  exd5 {[%clk 0:02:55]} 15. Ba6 {[%clk 0:02:51]}  Bxa6 {[%clk 0:02:35]} 16. Qxa6 {[%clk 0:02:50]}  c4 {[%clk 0:01:50]} 17. bxc4 {[%clk 0:02:33]}  dxc4 {[%clk 0:01:51]} 18. e4 {[%clk 0:02:33]}  Bb4 {[%clk 0:01:51]} 19. e5 {[%clk 0:02:23]}  Bxc3 {[%clk 0:01:51]} 20. exf6 {[%clk 0:02:24]}  Qb4 {[%clk 0:01:51]} 21. Bxc3 {[%clk 0:02:03]}  Qxc3 {[%clk 0:01:51]} 22. fxg7 {[%clk 0:02:04]}  Qa5 {[%clk 0:01:50]} 23. Rxe8+ {[%clk 0:01:58]}  Rxe8 {[%clk 0:01:50]} 24. Qxc4 {[%clk 0:01:59]}  Nf6 {[%clk 0:01:45]} 25. d5 {[%clk 0:01:50]}  Qc5 {[%clk 0:01:26]} 26. Qxc5 {[%clk 0:01:00]}  bxc5 {[%clk 0:01:27]} 27. d6 {[%clk 0:01:00]}  c4 {[%clk 0:01:13]} 28. Kf1 {[%clk 0:00:54]}  Rd8 {[%clk 0:01:11]} 29. Ne5 {[%clk 0:00:41]}  c3 {[%clk 0:01:11]} 30. Nc4 {[%clk 0:00:27]}  Rc8 {[%clk 0:01:07]} 31. Ne3 {[%clk 0:00:27]}  a5 {[%clk 0:00:52]} 32. Ke2 {[%clk 0:00:27]}  Rc6 {[%clk 0:00:34]} 33. Nf5 {[%clk 0:00:21]}  Rc5 {[%clk 0:00:27]} 34. g4 {[%clk 0:00:21]}  h5 {[%clk 0:00:08]} 35. h3 {[%clk 0:00:21]}  hxg4 {[%clk 0:00:07]} 36. hxg4 {[%clk 0:00:22]}  c2 {[%clk 0:00:03]} 37. Rc1 {[%clk 0:00:22]}  Kh7 {[%clk 0:00:02]} 38. d7 {[%clk 0:00:16]} 1-0


[Site "https://www.chess.com"]

[Event "Titled Tuesday Blitz April 12 Late 2022"]
[White "Goryachkina, Aleksandra"]
[Black "Xiong, Jeffery"]
[WhiteFideId "4147103"]
[BlackFideId "2047640"]
[WhiteElo "2426"]
[BlackElo "2727"]
[Result "0-1"]
[Round "04"]
[TimeControl "180+1"]
[Date "2022.04.12"]
[WhiteClock "0:00:02"]
[BlackClock "0:00:45"]

1. e4 {[%clk 0:02:59]}  c5 {[%clk 0:02:58]} 2. Nf3 {[%clk 0:02:59]}  d6 {[%clk 0:02:59]} 3. Bb5+ {[%clk 0:02:57]}  Nc6 {[%clk 0:02:59]} 4. O-O {[%clk 0:02:54]}  Bd7 {[%clk 0:03:00]} 5. Re1 {[%clk 0:02:54]}  Nf6 {[%clk 0:02:59]} 6. c3 {[%clk 0:02:52]}  a6 {[%clk 0:02:59]} 7. Bf1 {[%clk 0:02:51]}  Bg4 {[%clk 0:03:00]} 8. h3 {[%clk 0:02:49]}  Bxf3 {[%clk 0:03:00]} 9. Qxf3 {[%clk 0:02:50]}  e6 {[%clk 0:03:01]} 10. Qd1 {[%clk 0:02:43]}  Be7 {[%clk 0:02:50]} 11. d4 {[%clk 0:02:42]}  cxd4 {[%clk 0:02:51]} 12. cxd4 {[%clk 0:02:42]}  d5 {[%clk 0:02:52]} 13. e5 {[%clk 0:02:39]}  Nd7 {[%clk 0:02:51]} 14. Be3 {[%clk 0:02:32]}  O-O {[%clk 0:02:51]} 15. Nc3 {[%clk 0:02:31]}  Ndxe5 {[%clk 0:02:34]} 16. dxe5 {[%clk 0:02:24]}  d4 {[%clk 0:02:35]} 17. Bxd4 {[%clk 0:02:08]}  Qxd4 {[%clk 0:02:36]} 18. Qxd4 {[%clk 0:02:02]}  Nxd4 {[%clk 0:02:37]} 19. Rad1 {[%clk 0:02:02]}  Rfd8 {[%clk 0:02:34]} 20. Rd3 {[%clk 0:01:54]}  Nc6 {[%clk 0:02:31]} 21. f4 {[%clk 0:01:51]}  Nb4 {[%clk 0:02:18]} 22. Rxd8+ {[%clk 0:01:41]}  Rxd8 {[%clk 0:02:19]} 23. a3 {[%clk 0:01:39]}  Nc2 {[%clk 0:01:44]} 24. Rd1 {[%clk 0:01:37]}  Rxd1 {[%clk 0:01:31]} 25. Nxd1 {[%clk 0:01:38]}  g5 {[%clk 0:01:31]} 26. Bd3 {[%clk 0:01:22]}  Nd4 {[%clk 0:01:26]} 27. g3 {[%clk 0:01:19]}  h5 {[%clk 0:01:22]} 28. Kf2 {[%clk 0:01:02]}  h4 {[%clk 0:01:21]} 29. fxg5 {[%clk 0:00:45]}  hxg3+ {[%clk 0:01:21]} 30. Kxg3 {[%clk 0:00:45]}  Bxg5 {[%clk 0:01:22]} 31. h4 {[%clk 0:00:31]}  Bc1 {[%clk 0:01:22]} 32. a4 {[%clk 0:00:28]}  a5 {[%clk 0:01:20]} 33. Bc4 {[%clk 0:00:25]}  Nc6 {[%clk 0:01:18]} 34. Bd3 {[%clk 0:00:20]}  Nxe5 {[%clk 0:01:18]} 35. Be4 {[%clk 0:00:20]}  b6 {[%clk 0:01:18]} 36. b3 {[%clk 0:00:20]}  Nd7 {[%clk 0:01:18]} 37. Nf2 {[%clk 0:00:17]}  Bd2 {[%clk 0:01:07]} 38. Nd3 {[%clk 0:00:16]}  Bc3 {[%clk 0:00:57]} 39. Bc6 {[%clk 0:00:15]}  Nf6 {[%clk 0:00:58]} 40. Kf3 {[%clk 0:00:13]}  Kf8 {[%clk 0:00:58]} 41. Nf2 {[%clk 0:00:12]}  Bd4 {[%clk 0:00:55]} 42. Ne4 {[%clk 0:00:12]}  Nxe4 {[%clk 0:00:45]} 43. Kxe4 {[%clk 0:00:10]}  Bg7 {[%clk 0:00:44]} 44. h5 {[%clk 0:00:10]}  Ke7 {[%clk 0:00:44]} 45. Bb7 {[%clk 0:00:08]}  f5+ {[%clk 0:00:44]} 46. Kf3 {[%clk 0:00:08]}  e5 {[%clk 0:00:42]} 47. Bc8 {[%clk 0:00:06]}  Kf6 {[%clk 0:00:42]} 48. Bd7 {[%clk 0:00:06]}  Bh6 {[%clk 0:00:42]} 49. Bc8 {[%clk 0:00:06]}  Kg5 {[%clk 0:00:43]} 50. Bd7 {[%clk 0:00:04]}  Bf8 {[%clk 0:00:43]} 51. Bc8 {[%clk 0:00:04]}  Bc5 {[%clk 0:00:43]} 52. Bd7 {[%clk 0:00:03]}  e4+ {[%clk 0:00:43]} 53. Ke2 {[%clk 0:00:01]}  f4 {[%clk 0:00:43]} 54. Bc6 {[%clk 0:00:01]}  f3+ {[%clk 0:00:44]} 55. Kf1 {[%clk 0:00:02]}  Kf4 {[%clk 0:00:45]} 56. h6 {[%clk 0:00:02]}  e3 {[%clk 0:00:45]} 0-1


[Site "https://www.chess.com"]

[Event "Titled Tuesday Blitz April 12 Late 2022"]
[White "Guzman Moneo, Alberto"]
[Black "Soysal, Serkan"]
[WhiteFideId "2209616"]
[BlackFideId "6349250"]
[WhiteElo "2157"]
[BlackElo "2440"]
[Result "1/2-1/2"]
[Round "04"]
[TimeControl "180+1"]
[Date "2022.04.13"]
[WhiteClock "0:01:02"]
[BlackClock "0:00:12"]

1. e4 {[%clk 0:03:00]}  e6 {[%clk 0:02:57]} 2. Nf3 {[%clk 0:02:58]}  d5 {[%clk 0:02:57]} 3. e5 {[%clk 0:02:58]}  b6 {[%clk 0:02:52]} 4. d4 {[%clk 0:02:56]}  c5 {[%clk 0:02:50]} 5. c3 {[%clk 0:02:55]}  Qd7 {[%clk 0:02:51]} 6. a4 {[%clk 0:02:52]}  Ba6 {[%clk 0:02:47]} 7. Bxa6 {[%clk 0:02:48]}  Nxa6 {[%clk 0:02:48]} 8. O-O {[%clk 0:02:47]}  c4 {[%clk 0:02:32]} 9. Na3 {[%clk 0:02:41]}  Nb8 {[%clk 0:02:21]} 10. Bf4 {[%clk 0:02:34]}  Nc6 {[%clk 0:02:20]} 11. Nb5 {[%clk 0:02:30]}  a6 {[%clk 0:01:55]} 12. Nd6+ {[%clk 0:02:29]}  Bxd6 {[%clk 0:01:56]} 13. exd6 {[%clk 0:02:30]}  f6 {[%clk 0:01:41]} 14. Re1 {[%clk 0:02:26]}  Kf7 {[%clk 0:01:39]} 15. b4 {[%clk 0:02:23]}  cxb3 {[%clk 0:01:26]} 16. Qxb3 {[%clk 0:02:23]}  Rb8 {[%clk 0:01:27]} 17. Nd2 {[%clk 0:02:17]}  g5 {[%clk 0:01:22]} 18. Bg3 {[%clk 0:02:13]}  Nh6 {[%clk 0:01:22]} 19. Rad1 {[%clk 0:02:05]}  Nf5 {[%clk 0:01:21]} 20. Nf1 {[%clk 0:02:02]}  Na5 {[%clk 0:01:16]} 21. Qc2 {[%clk 0:01:58]}  h5 {[%clk 0:01:11]} 22. Ne3 {[%clk 0:01:57]}  Nxg3 {[%clk 0:00:51]} 23. fxg3 {[%clk 0:01:56]}  Qxd6 {[%clk 0:00:47]} 24. Rf1 {[%clk 0:01:48]}  Kg7 {[%clk 0:00:45]} 25. Rf2 {[%clk 0:01:25]}  Rbf8 {[%clk 0:00:28]} 26. Rdf1 {[%clk 0:01:24]}  Qc6 {[%clk 0:00:28]} 27. Qd3 {[%clk 0:01:15]}  Nc4 {[%clk 0:00:28]} 28. Nxc4 {[%clk 0:01:14]}  Qxc4 {[%clk 0:00:29]} 29. Qxc4 {[%clk 0:01:12]}  dxc4 {[%clk 0:00:30]} 30. Rb1 {[%clk 0:01:11]}  Rb8 {[%clk 0:00:26]} 31. Rfb2 {[%clk 0:01:11]}  e5 {[%clk 0:00:20]} 32. dxe5 {[%clk 0:01:10]}  fxe5 {[%clk 0:00:21]} 33. Rxb6 {[%clk 0:01:10]}  Rxb6 {[%clk 0:00:21]} 34. Rxb6 {[%clk 0:01:10]}  Rd8 {[%clk 0:00:22]} 35. Rxa6 {[%clk 0:01:08]}  Rd1+ {[%clk 0:00:21]} 36. Kf2 {[%clk 0:01:08]}  Rc1 {[%clk 0:00:22]} 37. Re6 {[%clk 0:01:07]}  Rxc3 {[%clk 0:00:22]} 38. Rxe5 {[%clk 0:01:07]}  Rc2+ {[%clk 0:00:22]} 39. Kf1 {[%clk 0:01:05]}  Ra2 {[%clk 0:00:21]} 40. Rxg5+ {[%clk 0:01:05]}  Kh6 {[%clk 0:00:19]} 41. Ra5 {[%clk 0:01:04]}  c3 {[%clk 0:00:19]} 42. Rc5 {[%clk 0:01:03]}  Ra1+ {[%clk 0:00:15]} 43. Ke2 {[%clk 0:01:04]}  Rxa4 {[%clk 0:00:12]} 44. Rxc3 {[%clk 0:01:03]}  Kg5 {[%clk 0:00:11]} 45. Rc5+ {[%clk 0:01:02]}  Kg6 {[%clk 0:00:11]} 46. Rc2 {[%clk 0:01:01]}  Rd4 {[%clk 0:00:10]} 47. Rd2 {[%clk 0:01:01]}  Ra4 {[%clk 0:00:10]} 48. Kf2 {[%clk 0:01:01]}  Kg5 {[%clk 0:00:10]} 49. Rd5+ {[%clk 0:01:01]}  Kg6 {[%clk 0:00:11]} 50. Rd2 {[%clk 0:01:01]}  Kg5 {[%clk 0:00:11]} 51. Rd5+ {[%clk 0:01:02]}  Kg6 {[%clk 0:00:12]} 52. Rd2 {[%clk 0:01:02]} 1/2-1/2


[Site "https://www.chess.com"]

[Event "Titled Tuesday Blitz April 12 Late 2022"]
[White "Hartikainen, Jarmo"]
[Black "Xie, Bryan"]
[WhiteFideId "503134"]
[BlackFideId "30941296"]
[WhiteElo "2122"]
[BlackElo "1899"]
[Result "0-1"]
[Round "04"]
[TimeControl "180+1"]
[Date "2022.04.13"]
[WhiteClock "0:00:04"]
[BlackClock "0:00:07"]

1. e4 {[%clk 0:03:00]}  c5 {[%clk 0:02:54]} 2. c3 {[%clk 0:02:59]}  Nf6 {[%clk 0:02:49]} 3. e5 {[%clk 0:02:59]}  Nd5 {[%clk 0:02:50]} 4. d4 {[%clk 0:02:59]}  cxd4 {[%clk 0:02:47]} 5. Nf3 {[%clk 0:02:59]}  d6 {[%clk 0:02:32]} 6. cxd4 {[%clk 0:02:55]}  e6 {[%clk 0:02:28]} 7. Nc3 {[%clk 0:02:48]}  Nxc3 {[%clk 0:01:57]} 8. bxc3 {[%clk 0:02:47]}  Be7 {[%clk 0:01:53]} 9. Bd3 {[%clk 0:02:43]}  O-O {[%clk 0:01:52]} 10. h4 {[%clk 0:02:40]}  h6 {[%clk 0:01:45]} 11. Bc2 {[%clk 0:02:28]}  dxe5 {[%clk 0:01:37]} 12. Qd3 {[%clk 0:02:15]}  f5 {[%clk 0:01:11]} 13. Nxe5 {[%clk 0:02:11]}  Bf6 {[%clk 0:01:08]} 14. Ng6 {[%clk 0:01:43]}  Re8 {[%clk 0:01:06]} 15. Bf4 {[%clk 0:01:28]}  Nc6 {[%clk 0:00:54]} 16. O-O {[%clk 0:00:59]}  e5 {[%clk 0:00:53]} 17. dxe5 {[%clk 0:00:59]}  Qxd3 {[%clk 0:00:51]} 18. Bxd3 {[%clk 0:00:57]}  Nxe5 {[%clk 0:00:50]} 19. Bxe5 {[%clk 0:00:42]}  Bxe5 {[%clk 0:00:50]} 20. Rae1 {[%clk 0:00:42]}  Be6 {[%clk 0:00:32]} 21. Nxe5 {[%clk 0:00:42]}  Bxa2 {[%clk 0:00:32]} 22. Bc4+ {[%clk 0:00:40]}  Bxc4 {[%clk 0:00:32]} 23. Nxc4 {[%clk 0:00:40]}  Rec8 {[%clk 0:00:18]} 24. Nd6 {[%clk 0:00:39]}  Rxc3 {[%clk 0:00:18]} 25. Nxb7 {[%clk 0:00:38]}  a5 {[%clk 0:00:19]} 26. Ra1 {[%clk 0:00:37]}  a4 {[%clk 0:00:19]} 27. Rfc1 {[%clk 0:00:35]}  Rxc1+ {[%clk 0:00:18]} 28. Rxc1 {[%clk 0:00:35]}  a3 {[%clk 0:00:18]} 29. Ra1 {[%clk 0:00:35]}  a2 {[%clk 0:00:16]} 30. Kh2 {[%clk 0:00:29]}  Rb8 {[%clk 0:00:17]} 31. Nd6 {[%clk 0:00:27]}  Rb2 {[%clk 0:00:17]} 32. Nxf5 {[%clk 0:00:26]}  Rxf2 {[%clk 0:00:18]} 33. Nd4 {[%clk 0:00:22]}  Rf4 {[%clk 0:00:06]} 34. Nf3 {[%clk 0:00:20]}  Ra4 {[%clk 0:00:06]} 35. Kg3 {[%clk 0:00:19]}  Kf7 {[%clk 0:00:06]} 36. Ne1 {[%clk 0:00:16]}  Ke6 {[%clk 0:00:06]} 37. Nc2 {[%clk 0:00:13]}  Kd5 {[%clk 0:00:04]} 38. Kf2 {[%clk 0:00:13]}  Kc4 {[%clk 0:00:03]} 39. Ke2 {[%clk 0:00:13]}  Kb3 {[%clk 0:00:03]} 40. Kd2 {[%clk 0:00:10]}  Kb2 {[%clk 0:00:04]} 41. Rf1 {[%clk 0:00:08]}  Rc4 {[%clk 0:00:02]} 42. Ra1 {[%clk 0:00:05]}  Rxc2+ {[%clk 0:00:02]} 43. Kd1 {[%clk 0:00:03]}  Rxg2 {[%clk 0:00:01]} 44. Rxa2+ {[%clk 0:00:03]}  Kxa2 {[%clk 0:00:02]} 45. Ke1 {[%clk 0:00:03]}  Rh2 {[%clk 0:00:02]} 46. Kf1 {[%clk 0:00:04]}  Rxh4 {[%clk 0:00:03]} 47. Kg2 {[%clk 0:00:04]}  Rb4 {[%clk 0:00:04]} 48. Kg3 {[%clk 0:00:05]}  Rb3+ {[%clk 0:00:05]} 49. Kf4 {[%clk 0:00:05]}  g5+ {[%clk 0:00:06]} 50. Kg4 {[%clk 0:00:05]}  Rb4+ {[%clk 0:00:06]} 51. Kh5 {[%clk 0:00:05]}  Rh4+ {[%clk 0:00:07]} 52. Kg6 {[%clk 0:00:05]}  g4 {[%clk 0:00:08]} 53. Kf5 {[%clk 0:00:06]}  g3 {[%clk 0:00:09]} 54. Kg6 {[%clk 0:00:05]}  g2 {[%clk 0:00:09]} 55. Kh7 {[%clk 0:00:05]}  g1=Q {[%clk 0:00:10]} 56. Kh8 {[%clk 0:00:05]}  Qc5 {[%clk 0:00:04]} 57. Kh7 {[%clk 0:00:05]}  Qg5 {[%clk 0:00:05]} 58. Kh8 {[%clk 0:00:04]}  Rf4 {[%clk 0:00:06]} 59. Kh7 {[%clk 0:00:04]}  Rf7+ {[%clk 0:00:06]} 60. Kh8 {[%clk 0:00:04]}  Qg7# {[%clk 0:00:07]} 0-1


[Site "https://www.chess.com"]

[Event "Titled Tuesday Blitz April 12 Late 2022"]
[White "Karas, Marek"]
[Black "Bas Mas, Jose Joaquin"]
[WhiteFideId "14928558"]
[BlackFideId "22219064"]
[WhiteElo "2271"]
[BlackElo "2212"]
[Result "0-1"]
[Round "04"]
[TimeControl "180+1"]
[Date "2022.04.13"]
[WhiteClock "0:00:04"]
[BlackClock "0:00:58"]

1. d4 {[%clk 0:02:38]}  Nf6 {[%clk 0:02:59]} 2. c4 {[%clk 0:02:38]}  c5 {[%clk 0:02:59]} 3. Nf3 {[%clk 0:02:37]}  cxd4 {[%clk 0:02:58]} 4. Nxd4 {[%clk 0:02:38]}  e6 {[%clk 0:02:59]} 5. Nc3 {[%clk 0:02:36]}  a6 {[%clk 0:02:59]} 6. g3 {[%clk 0:02:34]}  Qc7 {[%clk 0:02:59]} 7. Qd3 {[%clk 0:02:25]}  Nc6 {[%clk 0:02:57]} 8. Nf3 {[%clk 0:02:17]}  Nb4 {[%clk 0:02:54]} 9. Qd1 {[%clk 0:02:06]}  Qxc4 {[%clk 0:02:53]} 10. Bg2 {[%clk 0:02:03]}  d5 {[%clk 0:02:50]} 11. Ne5 {[%clk 0:01:52]}  Qc7 {[%clk 0:02:45]} 12. Qa4+ {[%clk 0:01:35]}  Bd7 {[%clk 0:02:36]} 13. Nxd7 {[%clk 0:01:33]}  Qxd7 {[%clk 0:02:35]} 14. Qb3 {[%clk 0:01:29]}  Be7 {[%clk 0:02:27]} 15. O-O {[%clk 0:01:27]}  O-O {[%clk 0:02:26]} 16. Bf4 {[%clk 0:01:25]}  b5 {[%clk 0:02:21]} 17. Rfd1 {[%clk 0:01:23]}  Rac8 {[%clk 0:02:15]} 18. Be5 {[%clk 0:01:02]}  Nc6 {[%clk 0:02:10]} 19. Bxf6 {[%clk 0:00:46]}  Bxf6 {[%clk 0:02:10]} 20. Ne4 {[%clk 0:00:30]}  Be7 {[%clk 0:02:04]} 21. Rac1 {[%clk 0:00:26]}  Na5 {[%clk 0:02:01]} 22. Qe3 {[%clk 0:00:21]}  Rxc1 {[%clk 0:01:58]} 23. Qxc1 {[%clk 0:00:21]}  Rc8 {[%clk 0:01:56]} 24. Qf4 {[%clk 0:00:17]}  Nc4 {[%clk 0:01:51]} 25. b3 {[%clk 0:00:13]}  Nd6 {[%clk 0:01:49]} 26. Nd2 {[%clk 0:00:08]}  h6 {[%clk 0:01:47]} 27. a4 {[%clk 0:00:08]}  Bg5 {[%clk 0:01:46]} 28. Qd4 {[%clk 0:00:07]}  Bxd2 {[%clk 0:01:44]} 29. Qxd2 {[%clk 0:00:06]}  bxa4 {[%clk 0:01:43]} 30. bxa4 {[%clk 0:00:06]}  Qxa4 {[%clk 0:01:43]} 31. Bf3 {[%clk 0:00:06]}  Qc2 {[%clk 0:01:35]} 32. Qd4 {[%clk 0:00:06]}  Nb5 {[%clk 0:01:28]} 33. Qa1 {[%clk 0:00:04]}  a5 {[%clk 0:01:21]} 34. Kg2 {[%clk 0:00:03]}  a4 {[%clk 0:01:20]} 35. Rb1 {[%clk 0:00:03]}  Nc3 {[%clk 0:01:19]} 36. Rc1 {[%clk 0:00:03]}  Qb3 {[%clk 0:01:17]} 37. e3 {[%clk 0:00:02]}  a3 {[%clk 0:01:16]} 38. Bd1 {[%clk 0:00:02]}  Qb2 {[%clk 0:01:14]} 39. Bc2 {[%clk 0:00:02]}  Qxa1 {[%clk 0:01:08]} 40. Rxa1 {[%clk 0:00:03]}  a2 {[%clk 0:01:08]} 41. Bb3 {[%clk 0:00:03]}  Ra8 {[%clk 0:01:08]} 42. Kf3 {[%clk 0:00:03]}  Rb8 {[%clk 0:01:07]} 43. Bc2 {[%clk 0:00:02]}  Rb2 {[%clk 0:01:04]} 44. Bd3 {[%clk 0:00:03]}  e5 {[%clk 0:00:58]} 45. e4 {[%clk 0:00:03]}  dxe4+ {[%clk 0:00:57]} 46. Bxe4 {[%clk 0:00:03]}  Nxe4 {[%clk 0:00:57]} 47. Kxe4 {[%clk 0:00:03]}  Rxf2 {[%clk 0:00:58]} 48. Kxe5 {[%clk 0:00:04]}  g6 {[%clk 0:00:58]} 0-1


[Site "https://www.chess.com"]